Cogmind - Beta 16 @@@ ROGUE MODE // 2025.10.30 @ 15:10:33 Player: jumpy Result: Destroyed by B-90 Cyclops with Nova Cannon Performance ------------- Evolutions (8) 4000 Regions Visited (16) 3200 Robots Destroyed (87) 435 Value Destroyed (2735) 2735 Prototype IDs (12) 240 Alien Tech Used (2) 400 Bonus (2386) 2386 TOTAL SCORE: 13396 Bonus ------- High Alert Combat Kills 111 Follower Combat Kills 1781 A7 Reached Mainframe 300 Met R17 at Cetus 500 Used Core Reset Matrix 3000 Scanned by Researcher 500 Friendly Fire -3806 Cogmind --------- Core Integrity 0/1450 Matter 300/300 Energy 99/100 System Corruption 24% Temperature Cool (9) Movement Core (50) Location -2/Research Parts ------- > --- POWER (2) -------- (None) > --- PROPULSION (8) --- (None) > --- UTILITY (10) ----- Advanced Hacking Suite > --- WEAPON (3) ------- (None) > --- INVENTORY (5) ---- Phase Armor Phase Redirector Tiamat Missile Launcher Improved Plasma Cutter Peak State ------------ > --- POWER ------------ Light Particle Reactor Quantum Reactor > --- PROPULSION ------- Gravmag System Antigrav System Antigrav System Antigrav System Combat Gravmag System Combat Gravmag System > --- UTILITY ---------- Improved Heat Sink Advanced Sensor Array Advanced Signal Interpreter Advanced Terrain Scanner Advanced Terrain Scan Processor Centrium Medium Armor Plating Improved Hacking Suite Advanced Hacking Suite > --- WEAPON ----------- Cooled Phase Cannon Ripper > --- INVENTORY -------- Phase Armor Phase Redirector Tiamat Missile Launcher Improved Plasma Cutter [Rating: 110] Favorites ----------- Power Quantum Reactor Engine Heavy Deuterium Engine Power Core Neutrino Core Reactor Quantum Reactor Propulsion Combat Gravmag System Leg Aluminum Leg Hover Unit Combat Gravmag System Utility Advanced Melee Analysis Suite Device Advanced Terrain Scanner Storage Large Storage Unit Processor Advanced Melee Analysis Suite Hackware Improved Hacking Suite Protection Centrium Medium Armor Plating Artifact Phase Redirector Weapon Autogun Energy Gun Small Laser Energy Cannon Cooled Phase Cannon Ballistic Gun Autogun Ballistic Cannon Heavy Flak Cannon Launcher Heavy Missile Launcher Special Weapon Improved Plasma Cutter Slashing Weapon Ripper Special Melee Weapon Improved Datajack Build | -11 -10 -9 -9 -8 -7 -6 -6 -6 -5 -5 -5 -5 -4 -3 -3 -2 ------- Run | Yrd Mat Mat Min Mat Fac Fac Was Fac Fac Ext Cet Arc Fac Res Qua Res Slots Evolved 16 | . . 2 . 2 2 2 . . 2 . . . 2 2 . 2 Power 1 | . . . . . . . . . . . . . 1 . . . Propulsion 6 | . . 1 . 1 1 1 . . 1 . . . . 1 . . Utility 8 | . . . . 1 1 1 . . 1 . . . 1 1 . 2 Weapon 1 | . . 1 . . . . . . . . . . . . . . Parts Attached 109 | 8 3 2 . 7 20 1 2 10 4 18 3 4 9 4 4 10 Power 14 | 2 . . . 1 1 . 1 . . 4 1 . 2 1 . 1 Engine 6 | 2 . . . 1 1 . 1 . . 1 . . . . . . Core 3 | . . . . . . . . . . 3 . . . . . . Reactor 5 | . . . . . . . . . . . 1 . 2 1 . 1 Propulsion 33 | 2 . 1 . 4 9 . 1 1 . 6 . 3 2 . 1 3 Treads . | . . . . . . . . . . . . . . . . . Leg 11 | 2 . 1 . 4 . . . . . 1 . . . . . 3 Wheel . | . . . . . . . . . . . . . . . . . Hover 22 | . . . . . 9 . 1 1 . 5 . 3 2 . 1 . Flight . | . . . . . . . . . . . . . . . . . Utility 35 | 2 1 . . 2 4 1 . 7 1 4 1 . 4 1 2 5 Device 17 | 1 . . . . 2 1 . 3 . 3 . . 2 . . 5 Storage 2 | 1 1 . . . . . . . . . . . . . . . Processor 7 | . . . . . 2 . . 4 . 1 . . . . . . Hackware 3 | . . . . . . . . . . . . . 1 1 1 . Protection 5 | . . . . 2 . . . . 1 . 1 . 1 . . . Artifact 1 | . . . . . . . . . . . . . . . 1 . Weapon 27 | 2 2 1 . . 6 . . 2 3 4 1 1 1 2 1 1 Energy Gun 2 | 2 . . . . . . . . . . . . . . . . Energy Cannon 6 | . . . . . 1 . . 1 1 . . . 1 1 1 . Ballistic Gun 3 | . 2 1 . . . . . . . . . . . . . . Ballistic Cannon 1 | . . . . . . . . . 1 . . . . . . . Launcher 4 | . . . . . 1 . . . . 1 . . . 1 . 1 Special Weapon 1 | . . . . . . . . . . 1 . . . . . . Impact Weapon . | . . . . . . . . . . . . . . . . . Slashing Weapon 7 | . . . . . 2 . . . 1 2 1 1 . . . . Piercing Weapon . | . . . . . . . . . . . . . . . . . Special Melee Weapon 3 | . . . . . 2 . . 1 . . . . . . . . Unidentified Prototypes 9 | . . . . 1 1 . . . . . 1 . 1 2 2 1 Parts Lost 44 | . . . . 2 . . 4 1 . 17 2 . 2 . 6 10 Power 6 | . . . . . . . 1 . . 4 . . . . 1 . Propulsion 19 | . . . . 2 . . 2 1 . 4 1 . 2 . 3 4 Utility 12 | . . . . . . . . . . 5 . . . . 2 5 Weapon 7 | . . . . . . . 1 . . 4 1 . . . . 1 Highest Loss Streak 7 | . . . . 2 . . 4 1 . 7 1 . 1 . 6 7 To Critical Strikes 2 | . . . . . . . . . . 1 . . . . 1 . Average Backups 6 | 4 7 8 9 13 13 13 11 3 4 3 4 5 4 4 4 4 Power . | . 1 1 1 1 2 3 2 . . . 1 . . . . . Propulsion . | 1 2 2 2 4 2 1 . . . . . . . . . . Utility 2 | . 2 2 3 4 7 6 5 3 3 1 . 2 2 2 1 2 Weapon 1 | . 2 3 3 2 2 2 2 . 1 1 . 1 1 1 1 1 Tool/Special . | . . . . . . . . . . . . . . . . . Unused Backups 25 | . 1 . . 6 3 2 7 . 1 2 . 1 1 . . 1 Power 5 | . . . . . 1 . 1 . . 2 . 1 . . . . Propulsion 4 | . . . . 3 . 1 . . . . . . . . . . Utility 11 | . . . . 1 1 1 5 . 1 . . . 1 . . 1 Weapon 5 | . 1 . . 2 1 . 1 . . . . . . . . . Tool/Special . | . . . . . . . . . . . . . . . . . Average Slot Usage (%) 73 | . 100 97 100 93 90 96 82 54 69 68 63 72 87 80 76 41 Engine 4 | . 14 11 11 9 7 6 5 6 5 1 . . . . . . Reactor 2 | . . . . . . . . . . . 4 5 9 9 7 2 Leg 6 | . 28 30 33 31 . . . . . . . . . . . 1 Hover 14 | . . . . . 37 40 33 8 11 18 12 22 30 23 22 8 Device 8 | . 14 11 11 9 9 6 4 6 11 8 5 5 7 14 12 4 Storage 3 | . 14 11 11 9 7 6 4 . . . . . . . . . Processor 12 | . . . . . 9 13 13 18 17 19 23 23 18 9 9 6 Hackware 1 | . . . . . . . . . . . . . 5 8 9 7 Protection 2 | . . . . 7 1 3 . . 4 1 4 5 5 4 4 2 Ballistic Gun 6 | . 23 33 33 27 3 . . . . . . . . . . . Slashing Weapon 5 | . . . . . 5 13 11 6 5 9 9 8 10 4 4 2 Special Melee Weapon 1 | . . . . . 5 6 6 6 5 2 . . . . . . Peak Build Rating 110 | 7 10 13 13 27 48 57 54 56 66 80 72 77 101 108 110 103 Average Rating 51 | 6 9 12 13 18 37 54 48 39 64 62 64 71 93 101 97 60 On Entrance 45 | . 7 10 13 13 27 48 54 31 56 66 53 61 77 97 101 67 Avg Prop Armor Cover (%) 7 | . . . . . . . . . . 8 . . . . 8 6 Naked Turns . | . . . . . . . . . . . . . . . . . Heaviest Build 61 | 14 32 35 35 45 45 43 39 18 32 32 35 34 59 61 58 41 Greatest Support 87 | 20 20 30 30 45 40 48 48 40 40 82 42 58 80 60 70 87 Greatest Overweight (x) 2 | . 1 1 1 1 1 . . . . . 1 1 . 1 2 2 Average Overweight (x) . | . . 1 1 . . . . . . . . . . . . . Largest Inventory Capacity 15 | 8 15 15 15 15 15 15 15 5 5 5 5 5 5 5 5 5 Average Capacity 8 | 7 12 15 15 15 15 15 12 5 5 5 5 5 5 5 5 5 Most Carried 15 | 7 9 8 10 15 15 15 15 5 5 5 5 5 5 5 5 5 Average Carried 6 | 4 7 8 9 13 13 14 12 3 4 3 4 4 4 4 4 4 Final Capacity 15 | 8 15 15 15 15 15 15 5 5 5 5 5 5 5 5 5 5 Final Carried 15 | 7 9 8 10 15 15 15 2 5 5 3 5 5 5 5 5 5 Class Distribution -------------------- 40% | Mutant 16% | Gladiator 9% | Scavenger-Mutant 7% | Gunner 6% | Scavenger-Scout 5% | Tank 4% | Scavenger-Gladiator 3% | Scavenger-Tank Dominant Class ---------------- Mutant | -10/Materials Gunner | -9/Materials Gunner | -9/Mines Tank | -8/Materials Mutant | -7/Factory Gladiator | -6/Factory Gladiator | -6/Waste Mutant | -6/Factory Mutant | -5/Factory Mutant | -5/Extension Gladiator | -5/Cetus Scavenger-Gladiator | -5/Archives Scavenger-Gladiator | -4/Factory Scavenger-Scout | -3/Research Scavenger-Scout | -3/Quarantine Scavenger-Mutant | -2/Research Resources | -11 -10 -9 -9 -8 -7 -6 -6 -6 -5 -5 -5 -5 -4 -3 -3 -2 ----------- Run | Yrd Mat Mat Min Mat Fac Fac Was Fac Fac Ext Cet Arc Fac Res Qua Res Matter Collected 2091 | 280 . . 67 425 95 25 . 312 154 212 87 40 78 . 145 171 Remotely . | . . . . . . . . . . . . . . . . . Salvage Created 3830 | 202 232 . . 539 126 25 . 333 162 1135 303 199 13 . 215 346 Parts 194 | 13 20 . . 28 10 3 . 21 4 40 12 11 2 . 10 20 Haulers Intercepted 5 | . 1 . . 2 . . . 1 . . . . . . 1 . Recyclers Shooed 3 | . . . . . . . . . 1 1 . . . . . 1 Parts Field Recycled . | . . . . . . . . . . . . . . . . . Retrieved Matter . | . . . . . . . . . . . . . . . . . Parts Self-Destructed . | . . . . . . . . . . . . . . . . . Prevented . | . . . . . . . . . . . . . . . . . Parts Restored . | . . . . . . . . . . . . . . . . . Kills | -11 -10 -9 -9 -8 -7 -6 -6 -6 -5 -5 -5 -5 -4 -3 -3 -2 ------- Run | Yrd Mat Mat Min Mat Fac Fac Was Fac Fac Ext Cet Arc Fac Res Qua Res Combat Hostiles Destroyed 45 | . 5 . . 7 3 . . 5 . 13 5 1 . . . 6 Melee 17 | . . . . . . . . 5 . 9 1 1 . . . 1 Guns 12 | . 5 . . 7 . . . . . . . . . . . . Cannons 1 | . . . . . . . . . . 1 . . . . . . AOE 15 | . . . . . 3 . . . . 3 4 . . . . 5 Classes Destroyed 12 | 2 4 . . 3 . . . 1 1 . . . . . . 1 Worker 11 | . 2 . . 1 2 1 . 2 . . . . 1 . . 2 Builder 1 | . . . . . . . . . . . . . . . . 1 Tunneler 8 | 6 . . . 1 . . . 1 . . . . . . . . Hauler 5 | . 1 . . 2 . . . 1 . . . . . . 1 . Recycler 6 | 1 . . . . . . . . 1 2 . . . . 1 1 Operator 6 | . . . . . . . . . 1 2 . 3 . . . . Watcher 4 | . . . . 1 1 . . . . 1 1 . . . . . Swarmer 15 | . 3 . . . 3 . . 4 . . . . . . . 5 Grunt 13 | . 2 . . 2 . . . . . 4 4 . . . . 1 Sentry 12 | . . . . 4 . . . . . 7 . 1 . . . . Hunter 3 | . . . . 1 . . . . . 2 . . . . . . Programmer 1 | . . . . . . . . 1 . . . . . . . . Cetus Guard 1 | . . . . . . . . . . . 1 . . . . . Best Kill Streak 8 | 2 8 . . 3 3 1 . 3 1 5 4 4 1 . 1 6 Combat Bots Only 5 | . 5 . . 2 3 . . 3 . 4 4 1 . . . 5 Max Kills in Single Turn 4 | 1 2 . . 1 2 1 . 1 1 2 2 1 1 . 1 4 Gunslinging . | . . . . . . . . . . . . . . . . . Exploded 3 | . . . . . 2 . . . . 2 2 . . . . 3 Melee 1 | . . . . . . . . 1 . 1 1 1 . . . 1 Uniques/NPCs Destroyed 1 | . . . . . . . . . . . 1 . . . . . A7 (-5/Cetus) Combat | -11 -10 -9 -9 -8 -7 -6 -6 -6 -5 -5 -5 -5 -4 -3 -3 -2 -------- Run | Yrd Mat Mat Min Mat Fac Fac Was Fac Fac Ext Cet Arc Fac Res Qua Res Hostile Shots Fired 525 | . 10 4 . 26 58 . 4 16 14 132 22 12 14 8 87 118 Missed 191 | . 5 2 . 6 33 . 1 3 8 34 3 8 5 4 36 43 Hits 334 | . 5 2 . 20 25 . 3 13 6 98 19 4 9 4 51 75 Melee 3 | . . . . . . . 3 . . . . . . . . . Projectile 331 | . 5 2 . 20 25 . . 13 6 98 19 4 9 4 51 75 Critical Strikes 18 | . . . . . . . 3 1 . 5 . . . . 2 7 Damage Taken 7304 | . 59 36 76 354 209 . 140 204 105 1981 595 104 236 73 603 2529 Core 2283 | . 10 18 15 17 16 . 52 95 . 354 94 22 . 44 66 1480 Absorbed by Shields 71 | . . . . . . . . . . 45 26 . . . . . Regen/Repaired (Parts) 27 | . . . . . . . . . . 27 . . . . . . Core Remaining (%) 89 | 100 96 . 91 96 97 . . 82 . . . 53 100 . 91 . Volleys Fired 82 | 16 12 . 1 32 6 . . . . 9 3 . . . . 3 Largest 3 | 2 2 . 3 3 1 . . . . 1 1 . . . . 1 Hottest 90 | 90 46 . 69 69 80 . . . . 81 39 . . . . 46 Shots Fired 176 | 32 24 . 3 96 6 . . . . 9 3 . . . . 3 Gun 155 | 32 24 . 3 96 . . . . . . . . . . . . Cannon 10 | . . . . . 4 . . . . 6 . . . . . . Launcher 11 | . . . . . 2 . . . . 3 3 . . . . 3 Special . | . . . . . . . . . . . . . . . . . Kinetic 123 | . 24 . 3 96 . . . . . . . . . . . . Thermal 36 | 32 . . . . 4 . . . . . . . . . . . Explosive 11 | . . . . . 2 . . . . 3 3 . . . . 3 Electromagnetic 6 | . . . . . . . . . . 6 . . . . . . Robot Hit Streak 11 | 11 7 . 2 7 5 . . . . 8 2 . . . . 2 Robot Miss Streak 4 | 4 4 . 1 4 1 . . . . 2 1 . . . . 1 Penetration Max . | . . . . . . . . . . . . . . . . . Secondary Targets . | . . . . . . . . . . . . . . . . . Shots Hit Robots 246 | 19 14 . 2 48 11 3 2 12 5 66 25 8 5 5 5 16 Core Hits 123 | 8 9 . . 23 5 1 . 8 1 31 16 5 . . 3 13 Critical Kills . | . . . . . . . . . . . . . . . . . Critical Parts Destroyed 1 | . . . . 1 . . . . . . . . . . . . Critical Strikes 20 | 2 . . . 1 . . . . . 13 . . . . 1 3 Burn 2 | 2 . . . . . . . . . . . . . . . . Destroy 1 | . . . . 1 . . . . . . . . . . . . Sever 17 | . . . . . . . . . . 13 . . . . 1 3 Melee Attacks 209 | . . . . . 13 5 9 21 7 74 24 9 7 9 14 17 Impact . | . . . . . . . . . . . . . . . . . Slashing 202 | . . . . . 12 5 9 21 7 68 24 9 7 9 14 17 Piercing . | . . . . . . . . . . . . . . . . . Sneak Attacks 52 | . . . . . 4 1 . 4 1 11 19 3 3 1 3 2 Combat Hostiles 3 | . . . . . . . . . . . . . 2 . 1 . Follow-up Attacks 5 | . . . . . . . 1 . . 2 1 . 1 . . . Damage Inflicted 10899 | 226 240 . 33 714 639 174 47 694 301 3449 1709 563 306 211 304 1289 Guns 1213 | 226 240 . 33 714 . . . . . . . . . . . . Cannons 297 | . . . . . 102 . . . . 195 . . . . . . Explosions 2013 | . . . . . 163 . . . . 714 457 . . . . 679 Melee 7329 | . . . . . 374 174 47 694 301 2540 1252 563 306 211 304 563 Ramming 47 | . . . . . . . . . . . . . . . . 47 Kinetic 987 | . 240 . 33 714 . . . . . . . . . . . . Thermal 328 | 226 . . . . 102 . . . . . . . . . . . Explosive 2013 | . . . . . 163 . . . . 714 457 . . . . 679 Electromagnetic 195 | . . . . . . . . . . 195 . . . . . . Impact . | . . . . . . . . . . . . . . . . . Slashing 7329 | . . . . . 374 174 47 694 301 2540 1252 563 306 211 304 563 Piercing . | . . . . . . . . . . . . . . . . . Highest Corruption 24 | . . . . . . . 10 10 . . . . . . . 24 Average Corruption 11 | . . . . . . . 10 8 . . . . . . . 19 Corruption Purged 5 | . . . . . . . . 5 . . . . . . . . Corruption Blocked . | . . . . . . . . . . . . . . . . . Effects 41 | . . . . . . . 5 22 . . . . . . . 14 Message Errors 10 | . . . . . . . . 7 . . . . . . . 3 Matter Fused 10 | . . . . . . . 1 6 . . . . . . . 3 Heat Flow Errors 3 | . . . . . . . 2 1 . . . . . . . . Energy Discharges 8 | . . . . . . . 1 4 . . . . . . . 3 Data Loss (minor) 4 | . . . . . . . . 3 . . . . . . . 1 Data Loss (major) 2 | . . . . . . . . 1 . . . . . . . 1 Misdirections 4 | . . . . . . . 1 . . . . . . . . 3 Overload Shots . | . . . . . . . . . . . . . . . . . Overflow Damage 1162 | . . . . . 107 12 . 116 149 413 90 153 39 13 . 70 Projectiles 52 | . . . . . . . . . . 52 . . . . . . Explosions 38 | . . . . . . . . . . 12 2 . . . . 24 Melee 1072 | . . . . . 107 12 . 116 149 349 88 153 39 13 . 46 Knockbacks 1 | . . . . . . . . . . . . . . . . 1 Impact 1 | . . . . . . . . . . . . . . . . 1 Kinetic . | . . . . . . . . . . . . . . . . . Secondary . | . . . . . . . . . . . . . . . . . Self-Inflicted Damage 34 | . . . . . . . . . . 12 . . . . . 22 Shots 1 | . . . . . . . . . . 1 . . . . . . Rammed 7 | . . . . . . . . . . . . . . . . 7 Targets Rammed 7 | . . . . . . . . . . . . . . . . 7 Kicked . | . . . . . . . . . . . . . . . . . Crushed . | . . . . . . . . . . . . . . . . . Highest Temperature 263 | 120 30 . 22 71 174 . 263 249 . 64 10 . 93 . . . Average Temperature 41 | 41 8 . 16 27 93 . 111 128 . 22 6 . 31 . . . Received Heat Transfer 847 | . 24 . . 81 54 . . . 9 433 177 . 18 . 33 18 Effects 1 | . . . . . . . 1 . . . . . . . . . Interference 1 | . . . . . . . 1 . . . . . . . . . Siege Activations . | . . . . . . . . . . . . . . . . . Martial Activations . | . . . . . . . . . . . . . . . . . Shielding Activations . | . . . . . . . . . . . . . . . . . Robots Disrupted . | . . . . . . . . . . . . . . . . . Combat Hostiles . | . . . . . . . . . . . . . . . . . Robots Corrupted . | . . . . . . . . . . . . . . . . . Combat Hostiles . | . . . . . . . . . . . . . . . . . Parts Fried 1 | . . . . . . . . . . . 1 . . . . . Impact Corruptions . | . . . . . . . . . . . . . . . . . Robots Melted . | . . . . . . . . . . . . . . . . . Combat Hostiles . | . . . . . . . . . . . . . . . . . Parts Melted 1 | 1 . . . . . . . . . . . . . . . . Heat Transferred 967 | 767 . . . . 200 . . . . . . . . . . . Parts Sabotaged . | . . . . . . . . . . . . . . . . . Parts Stolen . | . . . . . . . . . . . . . . . . . Parts Stripped . | . . . . . . . . . . . . . . . . . Power Chain Reactions . | . . . . . . . . . . . . . . . . . Alert | -11 -10 -9 -9 -8 -7 -6 -6 -6 -5 -5 -5 -5 -4 -3 -3 -2 ------- Run | Yrd Mat Mat Min Mat Fac Fac Was Fac Fac Ext Cet Arc Fac Res Qua Res Maximum Alert Level 2 | . . . . . . . . . . 2 2 1 1 . . . Low Security (%) 75 | 100 100 100 100 100 100 100 100 100 100 31 . . 91 100 100 100 Level 1 10 | . . . . . . . . . . 33 27 100 8 . . . Level 2 14 | . . . . . . . . . . 35 72 . . . . . Level 3 . | . . . . . . . . . . . . . . . . . Level 4 . | . . . . . . . . . . . . . . . . . Level 5 . | . . . . . . . . . . . . . . . . . High Security . | . . . . . . . . . . . . . . . . . Max Security . | . . . . . . . . . . . . . . . . . Peak Influence 688 | 5 116 48 . 50 86 45 4 100 30 670 688 300 206 93 65 169 Initial 367 | . . 48 . . 8 26 3 . 2 2 367 263 81 93 6 45 Average 121 | 1 9 19 . 13 15 17 . 27 5 305 466 256 106 48 12 25 Influence Increases 4397 | 35 145 . . 243 182 53 2 244 89 1324 769 151 257 19 252 632 Destroy 0b10 Robot/C 1760 | . 100 . . 140 60 . . 100 . 660 320 80 20 . . 280 Destroy 0b10 Robot/NC 220 | 35 15 . . 25 15 5 . 20 10 30 10 15 10 . 10 20 Destroy Leader 288 | . 22 . . 66 12 . . 22 . 92 20 . 12 . 2 40 Allied During Kill 728 | . . . . . . . . . . 281 331 41 8 . . 67 Trap Triggered on 0b10 20 | . . . . . . . . 10 . 10 . . . . . . Successful Hack 133 | . 7 . . 10 . 2 . 14 . 53 . . . . 26 21 Disable Machine 210 | . . . . . 30 . . 15 . 75 30 15 15 . 30 . Destroy Structure 243 | . 1 . . 2 5 1 2 3 4 108 58 . 12 4 4 39 Partial Spotted 90 | . . . . . . . . 30 15 . . . . 15 . 30 Lose Combat Pursuer 705 | . . . . . 60 45 . 30 60 15 . . 180 . 180 135 Influence Decreases 4397 | 35 29 116 . 224 146 97 13 237 91 673 767 575 313 185 184 712 Entered New Map 1087 | . . 68 . . 11 29 8 . 5 3 289 395 153 85 6 35 Time Decay 2174 | 35 29 48 . 204 135 68 4 227 86 323 398 80 120 100 119 198 Lost Part 353 | . . . . 20 . . 1 10 . 167 20 . 20 . 59 56 Lost Ally 783 | . . . . . . . . . . 180 60 100 20 . . 423 Squads Dispatched 23 | . . . . 1 2 1 . 2 1 6 . . . 1 4 5 Investigation 6 | . . . . . 1 1 . 1 . 2 . . . . 1 . Extermination 5 | . . . . . 1 . . 1 . . . . . . 1 2 Reinforcement 11 | . . . . 1 . . . . 1 4 . . . 1 2 2 Assault . | . . . . . . . . . . . . . . . . . Garrison 1 | . . . . . . . . . . . . . . . . 1 Intercept . | . . . . . . . . . . . . . . . . . Searches Triggered . | . . . . . . . . . . . . . . . . . Construction Impeded 1 | . . . . . . . . . . . . . . . . 1 Haulers Reinforced . | . . . . . . . . . . . . . . . . . Active Scanning Responses . | . . . . . . . . . . . . . . . . . Cargo Convoy Interrupts . | . . . . . . . . . . . . . . . . . Stealth | -11 -10 -9 -9 -8 -7 -6 -6 -6 -5 -5 -5 -5 -4 -3 -3 -2 --------- Run | Yrd Mat Mat Min Mat Fac Fac Was Fac Fac Ext Cet Arc Fac Res Qua Res Distress Signals 9 | . 1 . . 2 . . . . . 2 2 . . 1 1 . Communications Jammed . | . . . . . . . . . . . . . . . . . Distress Signals . | . . . . . . . . . . . . . . . . . Times Spotted 169 | . 8 1 . 11 9 2 6 8 4 32 17 11 13 4 17 26 Peak Tracking Total 13 | . 5 . . 3 3 3 6 4 4 6 5 3 13 3 13 8 Tactical Retreats 25 | . . . . . 3 1 . 2 3 1 . . 3 . 5 7 Traps | -11 -10 -9 -9 -8 -7 -6 -6 -6 -5 -5 -5 -5 -4 -3 -3 -2 ------- Run | Yrd Mat Mat Min Mat Fac Fac Was Fac Fac Ext Cet Arc Fac Res Qua Res Traps Triggered 14 | . . . 2 . . 2 . 1 1 2 . . 1 . . 5 Indirectly . | . . . . . . . . . . . . . . . . . Trap Hack Attempts 59 | . . . . . 6 . . 53 . . . . . . . . Triggered . | . . . . . . . . . . . . . . . . . Disarmed . | . . . . . . . . . . . . . . . . . Reprogrammed 6 | . . . . . 1 . . 4 . 1 . . . . . . Reused 2 | . . . . . . . . 1 . 1 . . . . . . Traps Extracted . | . . . . . . . . . . . . . . . . . Installed . | . . . . . . . . . . . . . . . . . Triggered 2 | . . . . . . . . 1 . 1 . . . . . . Machines | -11 -10 -9 -9 -8 -7 -6 -6 -6 -5 -5 -5 -5 -4 -3 -3 -2 ---------- Run | Yrd Mat Mat Min Mat Fac Fac Was Fac Fac Ext Cet Arc Fac Res Qua Res Machines Disabled 14 | . . . . . 2 . . 1 . 5 2 1 1 . 2 . Max in Single Turn 1 | . . . . . 1 . . 1 . 1 1 . 1 . 1 . Garrison Access 1 | . . . . . . . . . . . . . . . 1 . Machines Repaired . | . . . . . . . . . . . . . . . . . Machines Dismantled 3 | . . . . . . . . . . 2 1 . . . . . Machines Sabotaged . | . . . . . . . . . . . . . . . . . Overloaded Fab Kills . | . . . . . . . . . . . . . . . . . Hacking | -11 -10 -9 -9 -8 -7 -6 -6 -6 -5 -5 -5 -5 -4 -3 -3 -2 --------- Run | Yrd Mat Mat Min Mat Fac Fac Was Fac Fac Ext Cet Arc Fac Res Qua Res Machines Accessed 43 | . 1 1 1 3 6 2 . 5 . 13 . . . 1 7 3 Terminals 31 | . 1 . . 3 3 . . 3 . 12 . . . 1 6 2 Fabricators 3 | . . . . . 1 . . 1 . . . . . . . 1 Repair Stations 1 | . . . . . . . . . . 1 . . . . . . Recycling Units . | . . . . . . . . . . . . . . . . . Scanalyzers 3 | . . 1 . . . 1 . 1 . . . . . . . . Garrison Access 4 | . . . . . 2 1 . . . . . . . . 1 . Total Hacks 89 | . 5 2 1 8 10 9 . 11 . 24 . . . 2 11 6 Successful 33 | . 2 1 1 3 1 7 . 1 . 11 . . . 1 4 1 Failed 56 | . 3 1 . 5 9 2 . 10 . 13 . . . 1 7 5 Catastrophic 13 | . . . . 2 3 1 . 3 . 2 . . . . 2 . Database Lockouts . | . . . . . . . . . . . . . . . . . Manual 26 | . 4 . . 6 6 . . 4 . 5 1 . . . . . Terminals 66 | . 5 . . 8 5 . . 9 . 23 . . . 2 10 4 Fabricators 5 | . . . . . 2 . . 1 . . . . . . . 2 Repair Stations 1 | . . . . . . . . . . 1 . . . . . . Recycling Units . | . . . . . . . . . . . . . . . . . Scanalyzers 11 | . . 2 . . . 8 . 1 . . . . . . . . Garrison Access 5 | . . . . . 3 1 . . . . . . . . 1 . Terminal Hacks 21 | . 2 . 1 2 1 . . 1 . 10 . . . 1 3 . Part Schematic 1 | . 1 . . . . . . . . . . . . . . . Prototype ID Bank 2 | . . . . 1 . . . . . . . . . . 1 . Open Door 10 | . . . 1 . . . . . . 8 . . . 1 . . Branch Access Points 1 | . . . . . . . . . . . . . . . 1 . Locate Traps 3 | . . . . . 1 . . 1 . 1 . . . . . . Reprogram Traps 1 | . . . . . . . . . . 1 . . . . . . Zone Layout 3 | . 1 . . 1 . . . . . . . . . . 1 . Fabricator Hacks 1 | . . . . . . . . . . . . . . . . 1 Build 1 | . . . . . . . . . . . . . . . . 1 Repair Station Hacks . | . . . . . . . . . . . . . . . . . Recycling Unit Hacks . | . . . . . . . . . . . . . . . . . Scanalyzer 8 | . . 1 . . . 7 . . . . . . . . . . Insert Component 2 | . . . . . . 2 . . . . . . . . . . Analyze 3 | . . . . . . 3 . . . . . . . . . . Retrieve Study 3 | . . 1 . . . 2 . . . . . . . . . . Garrison Access Hacks 1 | . . . . . . . . . . . . . . . 1 . Seal Access 1 | . . . . . . . . . . . . . . . 1 . Unauthorized Hacks 2 | . . . . 1 . . . . . 1 . . . . . . Terminals 1 | . . . . 1 . . . . . . . . . . . . Botnet 1 | . . . . 1 . . . . . . . . . . . . Fabricators . | . . . . . . . . . . . . . . . . . Repair Stations 1 | . . . . . . . . . . 1 . . . . . . Patch 1 | . . . . . . . . . . 1 . . . . . . Recycling Units . | . . . . . . . . . . . . . . . . . Scanalyzers . | . . . . . . . . . . . . . . . . . Garrison Access . | . . . . . . . . . . . . . . . . . Data Cores Recovered . | . . . . . . . . . . . . . . . . . Used . | . . . . . . . . . . . . . . . . . Hacking Detections 35 | . 1 1 . 3 5 2 . 4 . 9 1 . . . 6 3 Full Trace Events 5 | . . . . 1 1 . . 1 . 1 . . . . 1 . Feedback Events . | . . . . . . . . . . . . . . . . . Feedback Blocked . | . . . . . . . . . . . . . . . . . Robot Schematics Acquired . | . . . . . . . . . . . . . . . . . Robots Built 3 | . . . . . . . . . . . . . . . . 3 Authchips . | . . . . . . . . . . . . . . . . . Time 68 | . . . . . . . . . . . . . . . . 68 Total Robot Build Rating 24 | . . . . . . . . . . . . . . . . 24 Part Schematics Acquired 3 | . 1 . . . . 2 . . . . . . . . . . Parts Built . | . . . . . . . . . . . . . . . . . Authchips . | . . . . . . . . . . . . . . . . . Time . | . . . . . . . . . . . . . . . . . Total Part Build Rating . | . . . . . . . . . . . . . . . . . Part Studies Acquired 3 | . . 1 . . . 2 . . . . . . . . . . Parts Repaired . | . . . . . . . . . . . . . . . . . Time . | . . . . . . . . . . . . . . . . . Parts Recycled . | . . . . . . . . . . . . . . . . . Recycled Matter . | . . . . . . . . . . . . . . . . . Retrieved Matter . | . . . . . . . . . . . . . . . . . Retrieved Components . | . . . . . . . . . . . . . . . . . Parts Scanalyzed 2 | . . . . . . 2 . . . . . . . . . . Part Schematics Acquired 2 | . . . . . . 2 . . . . . . . . . . Parts Damaged . | . . . . . . . . . . . . . . . . . Bothacking | -11 -10 -9 -9 -8 -7 -6 -6 -6 -5 -5 -5 -5 -4 -3 -3 -2 ------------ Run | Yrd Mat Mat Min Mat Fac Fac Was Fac Fac Ext Cet Arc Fac Res Qua Res Used RIF Installer . | . . . . . . . . . . . . . . . . . Robots Hacked 1 | . . . . . 1 . . . . . . . . . . . Non-combat 1 | . . . . . 1 . . . . . . . . . . . Combat . | . . . . . . . . . . . . . . . . . Robot Hacks Applied 1 | . . . . . 1 . . . . . . . . . . . find_chute 1 | . . . . . 1 . . . . . . . . . . . Relay Couplers Released . | . . . . . . . . . . . . . . . . . Fabnet Peak Effective % . | . . . . . . . . . . . . . . . . . Robots Rewired 8 | . . . . . . . . . . 8 . . . . . . Allies Hacked . | . . . . . . . . . . . . . . . . . Hacks Repelled . | . . . . . . . . . . . . . . . . . Allies | -11 -10 -9 -9 -8 -7 -6 -6 -6 -5 -5 -5 -5 -4 -3 -3 -2 -------- Run | Yrd Mat Mat Min Mat Fac Fac Was Fac Fac Ext Cet Arc Fac Res Qua Res Total Allies 62 | . . . . . . . . . . 23 1 . . . . 38 Largest Group 13 | . . . . . . . . . . 13 12 8 1 . . 13 Highest-Rated Group 477 | . . . . . . . . . . 477 466 279 96 . . 178 Highest-Rated Ally 159 | . . . . . . . . . . 159 159 96 96 . . 42 Total Orders . | . . . . . . . . . . . . . . . . . Ally Attacks 362 | . . . . . . . . . . 137 70 25 11 . . 119 Total Damage 8168 | . . . . . . . . . . 2346 2369 682 268 . . 2503 Kills 50 | . . . . . . . . . . 22 13 5 2 . . 8 Allies Corrupted 3 | . . . . . . . . . . . . . 1 . . 2 Allies Melted . | . . . . . . . . . . . . . . . . . Intel | -11 -10 -9 -9 -8 -7 -6 -6 -6 -5 -5 -5 -5 -4 -3 -3 -2 ------- Run | Yrd Mat Mat Min Mat Fac Fac Was Fac Fac Ext Cet Arc Fac Res Qua Res Active Infowar (turns) 6283 | 119 318 142 245 652 600 164 75 505 322 650 949 176 246 209 333 578 Sensors 2765 | . . . . . 278 164 75 505 322 300 . . 1 209 333 578 Terrain 2211 | . . . . . . . . . . 350 949 176 246 209 281 . Traps 207 | . . . . . 207 . . . . . . . . . . . Seismic 1798 | 119 318 142 245 652 322 . . . . . . . . . . . Robot Analysis Total . | . . . . . . . . . . . . . . . . . Derelict Logs Recovered . | . . . . . . . . . . . . . . . . . Drone Launches . | . . . . . . . . . . . . . . . . . Drone Recoveries . | . . . . . . . . . . . . . . . . . Exploration | -11 -10 -9 -9 -8 -7 -6 -6 -6 -5 -5 -5 -5 -4 -3 -3 -2 ------------- Run | Yrd Mat Mat Min Mat Fac Fac Was Fac Fac Ext Cet Arc Fac Res Qua Res Turns Passed 6924 | 222 318 142 245 652 600 164 92 632 322 809 949 176 246 209 333 813 Spaces Moved 6987 | 132 160 74 121 365 939 384 140 755 506 591 657 170 369 329 489 806 Core 442 | 3 . . . . . . . . . . . . . . . 439 Treads . | . . . . . . . . . . . . . . . . . Legs 895 | 129 160 74 121 365 . . . . . . . . . . . 46 Wheels . | . . . . . . . . . . . . . . . . . Hover 5650 | . . . . . 939 384 140 755 506 591 657 170 369 329 489 321 Flight . | . . . . . . . . . . . . . . . . . Fastest Speed 36 | 50 120 190 190 120 40 36 36 56 56 56 74 53 42 53 47 50 Average Speed 74 | 118 146 190 190 146 46 36 39 58 56 62 122 69 47 53 55 74 Slowest Speed 190 | 120 190 190 190 190 104 36 60 60 56 77 147 147 53 117 180 190 Overloaded Moves . | . . . . . . . . . . . . . . . . . Propulsion Burnouts . | . . . . . . . . . . . . . . . . . Robots Hopped . | . . . . . . . . . . . . . . . . . Potential Cave-ins 10 | . . . . . . . . . . 10 . . . . . . Cave-ins Triggered . | . . . . . . . . . . . . . . . . . Exploration Rate (%) 34 | 8 32 13 18 27 28 8 84 16 15 57 90 78 13 9 61 31 Regions Visited 16 Branch Regions 5 Pre-discovered Areas . | . . . . . . . . . . . . . . . . . Known Exits Taken 9 | . . . . . 1 . . 1 1 1 1 1 1 1 1 . Unknown Exits Taken 5 | 1 1 1 1 1 . . . . . . . . . . . . Scrap Searched 1 | . . . 1 . . . . . . . . . . . . . Spaces Dug 27 | . . . . . 4 1 4 3 2 8 . . 1 2 2 . Terrain Destroyed 125 | . . . . . 5 1 4 3 2 41 51 . 1 2 2 13 Melee 27 | . . . . . 4 1 4 3 2 8 . . 1 2 2 . Projectile . | . . . . . . . . . . . . . . . . . AOE 98 | . . . . . 1 . . . . 33 51 . . . . 13 Terrain Rammed . | . . . . . . . . . . . . . . . . . Walls Destroyed . | . . . . . . . . . . . . . . . . . Machines Disabled . | . . . . . . . . . . . . . . . . . Actions | -11 -10 -9 -9 -8 -7 -6 -6 -6 -5 -5 -5 -5 -4 -3 -3 -2 --------- Run | Yrd Mat Mat Min Mat Fac Fac Was Fac Fac Ext Cet Arc Fac Res Qua Res Total 8294 | 161 226 75 135 438 1082 408 167 906 536 903 756 211 425 350 528 987 Wait 621 | . 47 . 12 12 73 5 21 59 6 156 56 27 35 2 1 109 Move 6972 | 131 159 73 120 364 938 384 139 754 505 590 656 169 368 328 488 806 Hop . | . . . . . . . . . . . . . . . . . Pick Up 56 | 6 3 . 2 13 9 5 . 4 3 3 2 1 2 1 2 . Fast Attach 64 | 7 . 1 . 4 4 . . 6 2 12 2 4 5 3 5 9 Attach 25 | . . 1 . . 8 2 2 1 1 4 2 . 1 1 1 1 Detach 5 | . . . . . 2 . . . . . 2 . . . . 1 Swap 37 | 1 3 . . 3 9 2 . 3 1 6 1 . 6 1 1 . Drop 63 | . 2 . . 10 14 6 . 2 3 3 1 1 2 5 6 8 Fire 82 | 16 12 . 1 32 6 . . . . 9 3 . . . . 3 Melee 197 | . . . . . 13 4 5 21 7 69 23 9 6 9 14 17 Ram 7 | . . . . . . . . . . . . . . . . 7 Kick . | . . . . . . . . . . . . . . . . . Crush . | . . . . . . . . . . . . . . . . . Escape Stasis 53 | . . . . . . . . 3 8 6 . . . . 10 26 Rewire 29 | . . . . . . . . . . 29 . . . . . . Trap 59 | . . . . . 6 . . 53 . . . . . . . . Miscellaneous 24 | . . . . . . . . . . 16 8 . . . . . Route ------- -11/Scrapyard -10/Materials -9/Materials -9/Mines (discovered 2 exits: *Mat x2) -8/Materials -7/Factory -6/Factory -6/Waste -6/Factory (discovered 3 exits: *Fac / *Low x2) -5/Factory -5/Extension (discovered 2 exits: *Fac / *Cet) -5/Cetus (discovered 3 exits: *Fac x2 / *Arc) -5/Archives (discovered 3 exits: *Fac / *Hub x2) -4/Factory (discovered 2 exits: *Res / [*Arm]) -3/Research -3/Quarantine -2/Research History --------- Turn | Location | Event 21 | -11/Scrapyard | Discovered new exit (range 15) 223 | -11/Scrapyard | Entered Materials 312 | -10/Materials | Build established: Mutant 525 | -10/Materials | Discovered new exit (range 5) 541 | -10/Materials | Entered another Materials area 541 | -9/Materials | Evolved 2 slots: Propulsion x1, Weapon x1 673 | -9/Materials | Discovered new exit (range 5) 683 | -9/Materials | Entered Mines 716 | -9/Mines | Discovered new exit (range 5) 847 | -9/Mines | Discovered new exit (range 10) 854 | -9/Mines | Build established: Gunner 869 | -9/Mines | Met a Derelict who couldn't figure out how to use a Trap Extractor 928 | -9/Mines | Entered Materials 928 | -8/Materials | Evolved 2 slots: Propulsion x1, Utility x1 1361 | -8/Materials | Build established: Tank 1556 | -8/Materials | Discovered new exit (range 15) 1580 | -8/Materials | Entered Factory 1580 | -7/Factory | Evolved 2 slots: Propulsion x1, Utility x1 1964 | -7/Factory | Build established: Mutant 2167 | -7/Factory | Discovered new exit (range 13) 2176 | -7/Factory | Identified exit to Factory 2180 | -7/Factory | Entered another Factory area 2180 | -6/Factory | Evolved 2 slots: Propulsion x1, Utility x1 2299 | -6/Factory | Discovered new exit (range 4) 2339 | -6/Factory | Build established: Gladiator 2344 | -6/Factory | Sucked down chute 2344 | -6/Factory | Entered Waste 2352 | -6/Waste | Spotted C-40 Crusher 2359 | -6/Waste | EMP discharged 2359 | -6/Waste | System corruption reached 10% 2400 | -6/Waste | Spotted C-40 Crusher 2402 | -6/Waste | Spotted C-40 Crusher 2403 | -6/Waste | Spotted C-40 Crusher 2410 | -6/Waste | Spotted C-40 Crusher 2413 | -6/Waste | Spotted C-40 Crusher 2416 | -6/Waste | Crushed by Compactor (1 part destroyed, 1 dropped) 2418 | -6/Waste | Crushed by Compactor (1 part destroyed, 2 dropped) 2419 | -6/Waste | Crushed by Compactor (1 part destroyed, 2 dropped) 2430 | -6/Waste | Discovered new exit (range 11) 2436 | -6/Waste | Entered Factory 2450 | -6/Factory | Lost 4 parts (1p2n1w) 2687 | -6/Factory | Discovered new exit (range 11) 2693 | -6/Factory | Identified exit to Lower Caves 2727 | -6/Factory | Build established: Mutant 2931 | -6/Factory | Discovered exit to Lower Caves (range 4) 3024 | -6/Factory | Discovered new exit (range 13) 3067 | -6/Factory | Identified exit to Factory 3068 | -6/Factory | Entered another Factory area 3068 | -5/Factory | Evolved 2 slots: Propulsion x1, Utility x1 3382 | -5/Factory | Discovered new exit (range 14) 3389 | -5/Factory | Identified exit to Extension 3390 | -5/Factory | Entered Extension 3483 | -5/Extension | Rescued a captive Derelict 3497 | -5/Extension | Rescued a captive Derelict 3624 | -5/Extension | Lost 3 parts (1p1u1w) 3650 | -5/Extension | Rescued a captive Derelict 3770 | -5/Extension | Lost 7 parts (1p2n3u1w) 3890 | -5/Extension | Rescued a captive Derelict 3892 | -5/Extension | Rescued a captive Derelict 3899 | -5/Extension | Rescued a captive Derelict 3900 | -5/Extension | Rescued a captive Derelict 3945 | -5/Extension | Rescued a captive Derelict 3945 | -5/Extension | Rescued a captive Derelict 4005 | -5/Extension | Lost 3 parts (1p2n) 4009 | -5/Extension | Lost 7 allies 4015 | -5/Extension | Rescued a captive Derelict 4016 | -5/Extension | Rescued a captive Derelict 4040 | -5/Extension | Rescued a captive Derelict 4045 | -5/Extension | Rescued a captive Derelict 4069 | -5/Extension | Rescued A7 4093 | -5/Extension | Lost 3 parts (1u2w) 4093 | -5/Extension | Rescued a captive Derelict 4095 | -5/Extension | Rescued a captive Derelict 4145 | -5/Extension | Discovered new exit (range 17) 4150 | -5/Extension | Discovered new exit (range 6) 4154 | -5/Extension | Identified exit to Cetus 4199 | -5/Extension | Entered Cetus 4199 | -5/Cetus | Accompanied by 12 allies (A7) 4204 | -5/Cetus | Acquired a Cetus Manufacturing Module code from A7 4209 | -5/Cetus | Spotted Cetus Guard 4209 | -5/Cetus | Spotted Cetus Guard 4217 | -5/Cetus | Spotted Cetus Guard 4219 | -5/Cetus | Allies destroyed Cetus Guard 4220 | -5/Cetus | Spotted Cetus Guard 4229 | -5/Cetus | Allies destroyed Cetus Guard 4234 | -5/Cetus | Allies destroyed Cetus Guard 4237 | -5/Cetus | Allies destroyed Cetus Guard 4317 | -5/Cetus | Escorted A7 to Cetus Mainframe 4360 | -5/Cetus | Discovered new exit (range 15) 4373 | -5/Cetus | Spotted Cetus Guard 4388 | -5/Cetus | Spotted Cetus Guard 4389 | -5/Cetus | Spotted Cetus Guard 4391 | -5/Cetus | Spotted Cetus Guard 4392 | -5/Cetus | Allies destroyed Cetus Guard 4401 | -5/Cetus | Allies destroyed Cetus Guard 4414 | -5/Cetus | Allies destroyed Cetus Guard 4416 | -5/Cetus | Discovered new exit (range 15) 4418 | -5/Cetus | Destroyed Cetus Guard 4430 | -5/Cetus | Met Revision 17 4444 | -5/Cetus | Lost 4 allies 4664 | -5/Cetus | Discovered new exit (range 16) 4683 | -5/Cetus | Build established: Gladiator 4712 | -5/Cetus | Identified exit to Factory 4849 | -5/Cetus | Identified exit to Archives 4949 | -5/Cetus | Security sweep announced 4962 | -5/Cetus | Started Cetus Manufacturing Module 4987 | -5/Cetus | Manufactured an Enhanced Grunt 4989 | -5/Cetus | Cetus Manufacturing Module disabled 5112 | -5/Cetus | Murdered A7 5124 | -5/Cetus | Extracted ID and sensor layout for unrecognized location from A7's data core 5148 | -5/Cetus | Entered Archives 5148 | -5/Archives | Accompanied by 8 allies 5207 | -5/Archives | Discovered new exit (range 20) 5222 | -5/Archives | Discovered exit to Factory (range 16) 5234 | -5/Archives | Unable to access archive contents 5237 | -5/Archives | Lost 5 allies 5256 | -5/Archives | Discovered new exit (range 14) 5262 | -5/Archives | Identified exit to Hub_04(d) 5324 | -5/Archives | Entered Factory 5324 | -4/Factory | Accompanied by 1 ally 5324 | -4/Factory | Evolved 2 slots: Power x1, Utility x1 5452 | -4/Factory | Discovered new exit (range 16) 5533 | -4/Factory | Build established: Scavenger-Gladiator 5564 | -4/Factory | Spotted B-86 Titan 5565 | -4/Factory | Discovered new exit (range 11) 5570 | -4/Factory | Identified exit to Research 5570 | -4/Factory | Entered Research 5570 | -3/Research | Evolved 2 slots: Propulsion x1, Utility x1 5659 | -3/Research | Discovered new exit (range 8) 5662 | -3/Research | Identified exit to Quarantine 5779 | -3/Research | Entered Quarantine 5797 | -3/Quarantine | Found Alien Artifact 5797 | -3/Quarantine | Identified Phase Redirector 5834 | -3/Quarantine | Found Alien Artifact 5834 | -3/Quarantine | Identified Core Reset Matrix 5834 | -3/Quarantine | Used Core Reset Matrix 5838 | -3/Quarantine | Detected hypermatrix surge 5838 | -3/Quarantine | Sensed 4 artifacts in vicinity 5857 | -3/Quarantine | Build established: Scavenger-Scout 6018 | -3/Quarantine | Found Phase Armor 6029 | -3/Quarantine | Scanned by Researcher 6095 | -3/Quarantine | Discovered new exit (range 9) 6111 | -3/Quarantine | Lost 6 parts (1p3n2u) 6111 | -3/Quarantine | Identified exit to Research 6112 | -3/Quarantine | Entered Research 6112 | -2/Research | Evolved 2 slots: Utility x2 6316 | -2/Research | Build established: Scavenger-Mutant 6371 | -2/Research | Fabricated B-74 Champion (x3) 6488 | -2/Research | Spotted B-90 Cyclops 6648 | -2/Research | Lost 3 allies 6680 | -2/Research | System corruption reached 10% 6721 | -2/Research | Lost 7 parts (3n3u1w) 6730 | -2/Research | Core integrity fell below 50% 6738 | -2/Research | Emitted hypermatrix ping 6743 | -2/Research | Assembled emerged from beneath the floor 6772 | -2/Research | Core integrity fell below 20% 6779 | -2/Research | Assembled emerged from beneath the floor 6826 | -2/Research | Assembled emerged from beneath the floor 6832 | -2/Research | Garrison activated, responded to threat 6865 | -2/Research | Lost 3 allies 6874 | -2/Research | Assembled emerged from beneath the floor 6892 | -2/Research | Assembled emerged from beneath the floor 6924 | -2/Research | Spotted B-90 Cyclops 6925 | -2/Research | Destroyed by B-90 Cyclops with Nova Cannon Last Messages --------------- 06834_ 06902_ U-05 Engineer lays Concrete. 06904_ K-01 Serf cleans the DSF Access. 06904_ U-05 Engineer lays Concrete. 06905_ System corrupted: Energy discharge (-32). 06920_ System corrupted: Component data lost. Map ----- +----------------------------------------------------+ | ???????????????????# #?????????????# #????????? | | ???????????????????# #?????????????# #????????? | | ???????????????????# #?????????????# #????????? | | ?????????# ? "????# #?????????????# #????????? | | ?????????# """??# #?????????????# #????????? | | ?????????# """ # #?????????????#"########## | | ?????????# + ####??????????# | | ?????????# # +??????????# | | ?????????# + ####?????????## """ "" | | ?????????# # #????????????# """ R | | ?????????# ??# #????????????## """ " | | ?????????# ????# ######+######## [%[ | | ?????????# ??????# # *= | | ?????????# ????????+ # | | ???????????????????# # | | ???????????????????# # "" | | ???????????????????##+########+### # =! | | ???????????????????# !! #????# =! | | ???????????????????# !! # #####/###### | | ???????????????????# ! # | | ???????????????????# # | | ???????????????????# # | | ???????????????????# # | | ?????????? ##########;+###########+### ##### | | ?????????? k u #?????????????# #???? | | ?????????????????## !@#?????????????# #???? | | ????????????????#BB / ""????????????# #???? | | ????????????????#BB k G"#??????????# #???? | | ????????????????### "" #??????????# #???? | | ??????????????????# ! ####??????????# +???? | | ????????????????? ?????????????# #???? | | ????????????????### # T####?????????????# ????? | | ??????????????????# ###?????????????????# ????? | | ??????????????????#?????????????????????# ????? | | ?????????????????????????????????????????? ????? | | ?????????????????????????????????????????????????? | | ?????????????????????????????????????????????????? | | ?????????????????????????????????????????????????? | | ?????????????????????????????????????????????????? | | ?????????????????????????????????????????????????? | | ?????????????????????????????????????????????????? | | ?????????????????????????????????????????????????? | | ?????????????????????????????????????????????????? | | ?????????????????????????????????????????????????? | | ?????????????????????????????????????????????????? | | ?????????????????????????????????????????????????? | | ?????????????????????????????????????????????????? | | ?????????????????????????????????????????????????? | | ?????????????????????????????????????????????????? | | ?????????????????????????????????????????????????? | +----------------------------------------------------+ Best States ------------- Heat Dissipation 68 Energy Generation 43 Energy Capacity 575 Matter Stores 300 Matter Capacity 300 Sight Range 16 Robot Scan Range 16 Terrain Scan Range 20 Terrain Scan Density 210 Additional Mass Support 12 Armor Coverage 225 Melee Speed Boost 20 Phase Shifting 5 Evasion (%) 58 Melee Accuracy 22 Offensive Hacking 26 Item Schematics ----------------- None Robot Schematics ------------------ None Fabricated ------------ B-74 Champion | x3 | -2/Research | Preloaded Repaired ---------- Nothing Studied --------- None Alien Tech Used ----------------- Phase Redirector Core Reset Matrix Achievements -------------- Revising The Future Challenges ------------ None Game ------ Seed ArmageddonBladeMinigun Manual? 0 Play Time 01:04:36 Cumulative 253.1 hours Start 2025.10.30 @ 14:04:30 End 2025.10.30 @ 15:10:33 Sessions 1 Manual Loads 0 Difficulty Rogue Special Mode None Game No. 568 Rogue 568 Adventurer 0 Explorer 0 Win Type - Total 18 Types 13/0/3/1/1/0/0/0/0/0 Lore% 79 Gallery% 70 Achievement% 47 Wizard Run 0 Options --------- Layout 0 ASCII 0 Keyboard 0 Movement Numpad Keybinds 0 Fullscreen 2 Font 18/Terminus Map View 76x50 Zoom Use 0% Tactical HUD 1 Map Filters NONE Filters SATURATION(100) Steam 1 RUN: 2bcea65f-eb69-44bc-9498-1db219197b98